[Event "Titled Tuesday Blitz August 22 Late 2023"]
[White "Sjugirov, Sanan"]
[Black "Kozusek, Daniel"]
[WhiteFideId "4189302"]
[BlackFideId "349500"]
[WhiteElo "2891"]
[BlackElo "2559"]
[Result "0-1"]
[Round "2"]
[TimeControl "180+1"]
[Date "2023.08.22"]
[WhiteClock "0:00:04"]
[BlackClock "0:00:06"]
[Board "42"]

1. c4 {[%clk 0:03:00]}  e6 {[%clk 0:02:58]} 2. Nc3 {[%clk 0:03:00]}  d5 {[%clk 0:02:58]} 3. d4 {[%clk 0:03:00]}  Bb4 {[%clk 0:02:58]} 4. a3 {[%clk 0:02:54]}  Bxc3+ {[%clk 0:02:58]} 5. bxc3 {[%clk 0:02:55]}  c6 {[%clk 0:02:55]} 6. e3 {[%clk 0:02:53]}  Nf6 {[%clk 0:02:53]} 7. Bd3 {[%clk 0:02:49]}  O-O {[%clk 0:02:47]} 8. Ne2 {[%clk 0:02:47]}  b6 {[%clk 0:02:46]} 9. cxd5 {[%clk 0:02:39]}  cxd5 {[%clk 0:02:46]} 10. c4 {[%clk 0:02:37]}  Ba6 {[%clk 0:02:36]} 11. cxd5 {[%clk 0:02:35]}  Bxd3 {[%clk 0:02:36]} 12. Qxd3 {[%clk 0:02:35]}  Qxd5 {[%clk 0:02:34]} 13. O-O {[%clk 0:02:33]}  Nc6 {[%clk 0:02:31]} 14. Nc3 {[%clk 0:02:14]}  Qd7 {[%clk 0:02:27]} 15. Rd1 {[%clk 0:02:10]}  Rfd8 {[%clk 0:02:21]} 16. Bb2 {[%clk 0:01:57]}  Rac8 {[%clk 0:02:17]} 17. Rac1 {[%clk 0:01:35]}  Na5 {[%clk 0:02:02]} 18. Nb1 {[%clk 0:01:20]}  Rxc1 {[%clk 0:01:59]} 19. Rxc1 {[%clk 0:01:21]}  Rc8 {[%clk 0:01:59]} 20. Rxc8+ {[%clk 0:01:17]}  Qxc8 {[%clk 0:02:00]} 21. Nd2 {[%clk 0:01:17]}  h6 {[%clk 0:01:41]} 22. h3 {[%clk 0:01:14]}  Qc6 {[%clk 0:01:40]} 23. e4 {[%clk 0:01:12]}  Qd7 {[%clk 0:01:11]} 24. d5 {[%clk 0:01:07]}  Ne8 {[%clk 0:01:07]} 25. Nf3 {[%clk 0:01:02]}  exd5 {[%clk 0:00:58]} 26. exd5 {[%clk 0:01:03]}  Nc7 {[%clk 0:00:44]} 27. d6 {[%clk 0:00:48]}  Ne8 {[%clk 0:00:38]} 28. Qe4 {[%clk 0:00:24]}  Nxd6 {[%clk 0:00:24]} 29. Qd5 {[%clk 0:00:12]}  Nac4 {[%clk 0:00:20]} 30. Bc3 {[%clk 0:00:06]}  Qb7 {[%clk 0:00:10]} 31. Qd4 {[%clk 0:00:05]}  f5 {[%clk 0:00:10]} 32. Ne5 {[%clk 0:00:04]}  Nxe5 {[%clk 0:00:08]} 33. Qxe5 {[%clk 0:00:05]}  Ne4 {[%clk 0:00:08]} 34. Bd4 {[%clk 0:00:04]}  Qf7 {[%clk 0:00:08]} 35. a4 {[%clk 0:00:03]}  Kh7 {[%clk 0:00:08]} 36. f3 {[%clk 0:00:02]}  Ng5 {[%clk 0:00:08]} 37. Kh2 {[%clk 0:00:02]}  Ne6 {[%clk 0:00:08]} 38. Bc3 {[%clk 0:00:02]}  Qc7 {[%clk 0:00:08]} 39. Kg3 {[%clk 0:00:02]}  Qxe5+ {[%clk 0:00:08]} 40. Bxe5 {[%clk 0:00:03]}  Nc5 {[%clk 0:00:06]} 41. Bb8 {[%clk 0:00:03]}  a6 {[%clk 0:00:05]} 42. a5 {[%clk 0:00:03]}  bxa5 {[%clk 0:00:05]} 43. Kf4 {[%clk 0:00:03]}  Kg6 {[%clk 0:00:04]} 44. Bd6 {[%clk 0:00:03]}  Nd7 {[%clk 0:00:04]} 45. Ke3 {[%clk 0:00:03]}  Nb6 {[%clk 0:00:04]} 46. Kd4 {[%clk 0:00:04]}  Kf7 {[%clk 0:00:04]} 47. Kc5 {[%clk 0:00:03]}  Nd7+ {[%clk 0:00:04]} 48. Kc6 {[%clk 0:00:04]}  Ke6 {[%clk 0:00:05]} 49. Ba3 {[%clk 0:00:04]}  Ne5+ {[%clk 0:00:05]} 50. Kb6 {[%clk 0:00:04]}  Nc4+ {[%clk 0:00:05]} 51. Kxa6 {[%clk 0:00:04]}  Nxa3 {[%clk 0:00:05]} 52. Kxa5 {[%clk 0:00:05]}  Nc4+ {[%clk 0:00:05]} 53. Kb4 {[%clk 0:00:04]}  Ne3 {[%clk 0:00:06]} 0-1


[Site "https://www.chess.com"]

[Event "Titled Tuesday Blitz August 22 Late 2023"]
[White "Przybylski, Wojciech"]
[Black "Zierk, Steven"]
[WhiteFideId "1117599"]
[BlackFideId "2034255"]
[WhiteElo "2554"]
[BlackElo "2873"]
[Result "1-0"]
[Round "2"]
[TimeControl "180+1"]
[Date "2023.08.22"]
[WhiteClock "0:00:09"]
[BlackClock "0:00:08"]
[Board "46"]

1. d4 {[%clk 0:02:59]}  d5 {[%clk 0:02:59]} 2. g3 {[%clk 0:02:58]}  Nf6 {[%clk 0:02:58]} 3. Bg2 {[%clk 0:02:59]}  c6 {[%clk 0:02:55]} 4. Nf3 {[%clk 0:02:58]}  Bg4 {[%clk 0:02:55]} 5. O-O {[%clk 0:02:58]}  Nbd7 {[%clk 0:02:54]} 6. c4 {[%clk 0:02:56]}  e6 {[%clk 0:02:54]} 7. h3 {[%clk 0:02:55]}  Bf5 {[%clk 0:02:52]} 8. Nc3 {[%clk 0:02:54]}  h6 {[%clk 0:02:52]} 9. Re1 {[%clk 0:02:53]}  Be7 {[%clk 0:02:45]} 10. Nd2 {[%clk 0:02:51]}  O-O {[%clk 0:02:44]} 11. e4 {[%clk 0:02:49]}  dxe4 {[%clk 0:02:45]} 12. Ndxe4 {[%clk 0:02:48]}  Nxe4 {[%clk 0:02:39]} 13. Nxe4 {[%clk 0:02:47]}  Nf6 {[%clk 0:02:39]} 14. Nc3 {[%clk 0:02:44]}  Qb6 {[%clk 0:02:35]} 15. b3 {[%clk 0:02:38]}  Rfd8 {[%clk 0:02:29]} 16. Be3 {[%clk 0:02:37]}  Bb4 {[%clk 0:02:24]} 17. Na4 {[%clk 0:02:25]}  Qc7 {[%clk 0:02:21]} 18. Re2 {[%clk 0:02:24]}  e5 {[%clk 0:02:15]} 19. d5 {[%clk 0:02:16]}  cxd5 {[%clk 0:02:11]} 20. cxd5 {[%clk 0:02:16]}  b5 {[%clk 0:02:03]} 21. a3 {[%clk 0:02:05]}  Bf8 {[%clk 0:01:53]} 22. Rc1 {[%clk 0:02:01]}  Qa5 {[%clk 0:01:47]} 23. Nc5 {[%clk 0:01:49]}  Qxa3 {[%clk 0:01:41]} 24. Nb7 {[%clk 0:01:25]}  Rd7 {[%clk 0:01:31]} 25. d6 {[%clk 0:01:19]}  Ne4 {[%clk 0:00:45]} 26. Bxe4 {[%clk 0:00:58]}  Bxe4 {[%clk 0:00:46]} 27. Ra1 {[%clk 0:00:57]}  Qxa1 {[%clk 0:00:28]} 28. Qxa1 {[%clk 0:00:56]}  Bxb7 {[%clk 0:00:27]} 29. Bc5 {[%clk 0:00:51]}  f6 {[%clk 0:00:19]} 30. b4 {[%clk 0:00:46]}  Bd5 {[%clk 0:00:17]} 31. Rd2 {[%clk 0:00:41]}  Bc4 {[%clk 0:00:17]} 32. f4 {[%clk 0:00:40]}  exf4 {[%clk 0:00:16]} 33. gxf4 {[%clk 0:00:39]}  Rad8 {[%clk 0:00:14]} 34. Qd1 {[%clk 0:00:38]}  Re8 {[%clk 0:00:12]} 35. Qg4 {[%clk 0:00:31]}  Re1+ {[%clk 0:00:11]} 36. Kf2 {[%clk 0:00:30]}  Re6 {[%clk 0:00:11]} 37. Qf5 {[%clk 0:00:23]}  Bxd6 {[%clk 0:00:07]} 38. Bxd6 {[%clk 0:00:13]}  Rdxd6 {[%clk 0:00:08]} 39. Rxd6 {[%clk 0:00:13]}  Rxd6 {[%clk 0:00:09]} 40. Qc8+ {[%clk 0:00:12]}  Kh7 {[%clk 0:00:09]} 41. h4 {[%clk 0:00:11]}  Rd2+ {[%clk 0:00:08]} 42. Ke3 {[%clk 0:00:10]}  Rd3+ {[%clk 0:00:08]} 43. Kf2 {[%clk 0:00:09]}  Rd5 {[%clk 0:00:09]} 44. Qe8 {[%clk 0:00:08]}  Rf5 {[%clk 0:00:07]} 45. Qe4 {[%clk 0:00:07]}  g6 {[%clk 0:00:07]} 46. Qe7+ {[%clk 0:00:07]}  Kg8 {[%clk 0:00:07]} 47. Ke3 {[%clk 0:00:07]}  Bf7 {[%clk 0:00:07]} 48. Qd8+ {[%clk 0:00:08]}  Kg7 {[%clk 0:00:08]} 49. Qd7 {[%clk 0:00:08]}  a6 {[%clk 0:00:08]} 50. Qb7 {[%clk 0:00:08]}  g5 {[%clk 0:00:06]} 51. hxg5 {[%clk 0:00:08]}  fxg5 {[%clk 0:00:06]} 52. fxg5 {[%clk 0:00:08]}  hxg5 {[%clk 0:00:06]} 53. Qxa6 {[%clk 0:00:07]}  g4 {[%clk 0:00:07]} 54. Qd6 {[%clk 0:00:07]}  Rg5 {[%clk 0:00:07]} 55. Qf4 {[%clk 0:00:07]}  Rg6 {[%clk 0:00:06]} 56. Qd4+ {[%clk 0:00:07]}  Kg8 {[%clk 0:00:06]} 57. Qd8+ {[%clk 0:00:07]}  Kh7 {[%clk 0:00:07]} 58. Qh4+ {[%clk 0:00:07]}  Kg7 {[%clk 0:00:07]} 59. Qg3 {[%clk 0:00:08]}  Re6+ {[%clk 0:00:07]} 60. Kd4 {[%clk 0:00:08]}  Rg6 {[%clk 0:00:06]} 61. Ke5 {[%clk 0:00:08]}  Bc4 {[%clk 0:00:05]} 62. Kf5 {[%clk 0:00:08]}  Rf6+ {[%clk 0:00:05]} 63. Ke5 {[%clk 0:00:07]}  Be2 {[%clk 0:00:05]} 64. Qh4 {[%clk 0:00:06]}  Rg6 {[%clk 0:00:05]} 65. Qe7+ {[%clk 0:00:06]}  Kh6 {[%clk 0:00:05]} 66. Kf4 {[%clk 0:00:06]}  Bf3 {[%clk 0:00:04]} 67. Qf8+ {[%clk 0:00:06]}  Kh7 {[%clk 0:00:04]} 68. Qf7+ {[%clk 0:00:05]}  Rg7 {[%clk 0:00:04]} 69. Qh5+ {[%clk 0:00:05]}  Kg8 {[%clk 0:00:05]} 70. Qe8+ {[%clk 0:00:06]}  Kh7 {[%clk 0:00:06]} 71. Qxb5 {[%clk 0:00:06]}  Rf7+ {[%clk 0:00:03]} 72. Kg3 {[%clk 0:00:06]}  Kg6 {[%clk 0:00:04]} 73. Qb6+ {[%clk 0:00:06]}  Kf5 {[%clk 0:00:04]} 74. Qd4 {[%clk 0:00:05]}  Rb7 {[%clk 0:00:04]} 75. Qc5+ {[%clk 0:00:05]}  Ke6 {[%clk 0:00:04]} 76. b5 {[%clk 0:00:05]}  Kd7 {[%clk 0:00:05]} 77. Kf4 {[%clk 0:00:05]}  Rc7 {[%clk 0:00:05]} 78. Qd4+ {[%clk 0:00:05]}  Kc8 {[%clk 0:00:05]} 79. b6 {[%clk 0:00:05]}  Rc6 {[%clk 0:00:03]} 80. Qb4 {[%clk 0:00:04]}  Kb7 {[%clk 0:00:03]} 81. Kg3 {[%clk 0:00:04]}  Rxb6 {[%clk 0:00:04]} 82. Qe7+ {[%clk 0:00:04]}  Ka6 {[%clk 0:00:05]} 83. Qa3+ {[%clk 0:00:05]}  Kb5 {[%clk 0:00:06]} 84. Qc3 {[%clk 0:00:05]}  Rc6 {[%clk 0:00:06]} 85. Qd3+ {[%clk 0:00:06]}  Kc5 {[%clk 0:00:06]} 86. Kf4 {[%clk 0:00:06]}  Rd6 {[%clk 0:00:06]} 87. Qa3+ {[%clk 0:00:07]}  Kd5 {[%clk 0:00:07]} 88. Qb3+ {[%clk 0:00:07]}  Kd4 {[%clk 0:00:07]} 89. Qb4+ {[%clk 0:00:08]}  Kd5 {[%clk 0:00:08]} 90. Qb5+ {[%clk 0:00:08]}  Kd4 {[%clk 0:00:07]} 91. Qe5+ {[%clk 0:00:08]}  Kd3 {[%clk 0:00:08]} 92. Qxd6+ {[%clk 0:00:09]}  Ke2 {[%clk 0:00:09]} 93. Qc5 {[%clk 0:00:09]}  Kd3 {[%clk 0:00:09]} 94. Qe3+ {[%clk 0:00:09]}  Kc4 {[%clk 0:00:09]} 95. Qf2 {[%clk 0:00:10]}  Kd3 {[%clk 0:00:10]} 96. Ke5 {[%clk 0:00:11]}  Kc3 {[%clk 0:00:08]} 97. Qe3+ {[%clk 0:00:10]}  Kc4 {[%clk 0:00:08]} 98. Qd2 {[%clk 0:00:10]}  Bc6 {[%clk 0:00:07]} 99. Qc2+ {[%clk 0:00:09]}  Kb5 {[%clk 0:00:07]} 100. Kd6 {[%clk 0:00:09]}  Bf3 {[%clk 0:00:07]} 101. Qb3+ {[%clk 0:00:08]}  Ka6 {[%clk 0:00:07]} 102. Kc5 {[%clk 0:00:08]}  Ka7 {[%clk 0:00:08]} 103. Qb6+ {[%clk 0:00:08]}  Ka8 {[%clk 0:00:08]} 104. Kd6 {[%clk 0:00:09]}  g3 {[%clk 0:00:08]} 105. Kc7 {[%clk 0:00:09]} 1-0


[Site "https://www.chess.com"]

[Event "Titled Tuesday Blitz August 22 Late 2023"]
[White "Bartel, Mateusz"]
[Black "reevecanada"]
[WhiteFideId "1112635"]
[WhiteElo "2861"]
[BlackElo "2551"]
[Result "1-0"]
[Round "2"]
[TimeControl "180+1"]
[Date "2023.08.22"]
[WhiteClock "0:00:11"]
[BlackClock "0:00:08"]
[Board "48"]

1. e4 {[%clk 0:02:49]}  c5 {[%clk 0:02:58]} 2. Nf3 {[%clk 0:02:48]}  d6 {[%clk 0:02:57]} 3. Nc3 {[%clk 0:02:45]}  Nf6 {[%clk 0:02:56]} 4. d4 {[%clk 0:02:45]}  cxd4 {[%clk 0:02:56]} 5. Qxd4 {[%clk 0:02:46]}  Nc6 {[%clk 0:02:56]} 6. Qd3 {[%clk 0:02:47]}  g6 {[%clk 0:02:56]} 7. Nd5 {[%clk 0:02:47]}  Bg7 {[%clk 0:02:56]} 8. c3 {[%clk 0:02:47]}  O-O {[%clk 0:02:55]} 9. Bg5 {[%clk 0:02:48]}  e6 {[%clk 0:02:53]} 10. Nxf6+ {[%clk 0:02:41]}  Bxf6 {[%clk 0:02:52]} 11. Bxf6 {[%clk 0:02:41]}  Qxf6 {[%clk 0:02:53]} 12. Qxd6 {[%clk 0:02:25]}  Rd8 {[%clk 0:02:52]} 13. Qc5 {[%clk 0:02:25]}  Qf4 {[%clk 0:02:48]} 14. Qe3 {[%clk 0:02:22]}  Qxe3+ {[%clk 0:02:46]} 15. fxe3 {[%clk 0:02:22]}  e5 {[%clk 0:02:46]} 16. Bc4 {[%clk 0:02:22]}  Kg7 {[%clk 0:02:45]} 17. Kf2 {[%clk 0:02:15]}  f6 {[%clk 0:02:42]} 18. Rhd1 {[%clk 0:02:14]}  Bd7 {[%clk 0:02:40]} 19. Rd6 {[%clk 0:02:11]}  Be8 {[%clk 0:02:40]} 20. Rad1 {[%clk 0:02:12]}  Rxd6 {[%clk 0:02:39]} 21. Rxd6 {[%clk 0:02:12]}  Rd8 {[%clk 0:02:39]} 22. Rxd8 {[%clk 0:02:10]}  Nxd8 {[%clk 0:02:40]} 23. Bd5 {[%clk 0:02:10]}  b6 {[%clk 0:02:35]} 24. Nd2 {[%clk 0:02:06]}  Nf7 {[%clk 0:02:35]} 25. Bxf7 {[%clk 0:02:04]}  Kxf7 {[%clk 0:02:33]} 26. Ke2 {[%clk 0:02:03]}  Bb5+ {[%clk 0:02:33]} 27. c4 {[%clk 0:02:03]}  Bc6 {[%clk 0:02:33]} 28. Kd3 {[%clk 0:02:03]}  Ke6 {[%clk 0:02:33]} 29. g3 {[%clk 0:02:03]}  h5 {[%clk 0:02:33]} 30. h4 {[%clk 0:02:02]}  f5 {[%clk 0:02:32]} 31. b4 {[%clk 0:01:57]}  a6 {[%clk 0:02:23]} 32. a3 {[%clk 0:01:56]}  Bb7 {[%clk 0:02:22]} 33. c5 {[%clk 0:01:42]}  b5 {[%clk 0:02:22]} 34. exf5+ {[%clk 0:01:35]}  Kxf5 {[%clk 0:02:22]} 35. Ke2 {[%clk 0:01:35]}  Kg4 {[%clk 0:01:47]} 36. Kf2 {[%clk 0:01:34]}  Kf5 {[%clk 0:01:38]} 37. e4+ {[%clk 0:01:31]}  Ke6 {[%clk 0:01:36]} 38. Ke3 {[%clk 0:01:30]}  Bc6 {[%clk 0:01:34]} 39. Nf3 {[%clk 0:01:23]}  Bb7 {[%clk 0:01:31]} 40. Ng5+ {[%clk 0:01:23]}  Kf6 {[%clk 0:01:31]} 41. Kf3 {[%clk 0:01:22]}  Bc6 {[%clk 0:01:17]} 42. g4 {[%clk 0:01:21]}  Bd7 {[%clk 0:01:15]} 43. gxh5 {[%clk 0:01:20]}  gxh5 {[%clk 0:01:16]} 44. Ke3 {[%clk 0:01:11]}  Bc6 {[%clk 0:01:15]} 45. Nf3 {[%clk 0:01:10]}  Bb7 {[%clk 0:01:14]} 46. Ng1 {[%clk 0:01:11]}  Bc6 {[%clk 0:01:14]} 47. Ne2 {[%clk 0:01:12]}  Bb7 {[%clk 0:01:13]} 48. Ng3 {[%clk 0:01:12]}  Kg6 {[%clk 0:01:06]} 49. Nf5 {[%clk 0:01:12]}  Kf6 {[%clk 0:01:02]} 50. Ng3 {[%clk 0:01:09]}  Kg6 {[%clk 0:01:02]} 51. Kd3 {[%clk 0:01:10]}  Bc6 {[%clk 0:01:00]} 52. Kc3 {[%clk 0:01:09]}  Bb7 {[%clk 0:00:59]} 53. Kb2 {[%clk 0:01:09]}  Bc6 {[%clk 0:00:59]} 54. Kb3 {[%clk 0:01:09]}  Bd7 {[%clk 0:00:57]} 55. Kc2 {[%clk 0:01:05]}  Bc6 {[%clk 0:00:57]} 56. Kd3 {[%clk 0:01:05]}  Bd7 {[%clk 0:00:56]} 57. Nf5 {[%clk 0:01:02]}  Kf6 {[%clk 0:00:41]} 58. Nd6 {[%clk 0:01:01]}  Bc6 {[%clk 0:00:41]} 59. Kc3 {[%clk 0:00:56]}  Ke6 {[%clk 0:00:40]} 60. Kb2 {[%clk 0:00:27]}  Kf6 {[%clk 0:00:34]} 61. Kc2 {[%clk 0:00:14]}  Ke6 {[%clk 0:00:33]} 62. Kd3 {[%clk 0:00:14]}  Kf6 {[%clk 0:00:31]} 63. Nf5 {[%clk 0:00:07]}  Be8 {[%clk 0:00:24]} 64. Ne3 {[%clk 0:00:06]}  Bc6 {[%clk 0:00:14]} 65. Nd5+ {[%clk 0:00:07]}  Ke6 {[%clk 0:00:14]} 66. Nc7+ {[%clk 0:00:07]}  Kd7 {[%clk 0:00:14]} 67. Nd5 {[%clk 0:00:05]}  Ke6 {[%clk 0:00:14]} 68. Nc3 {[%clk 0:00:06]}  Bb7 {[%clk 0:00:13]} 69. a4 {[%clk 0:00:06]}  Bc6 {[%clk 0:00:13]} 70. a5 {[%clk 0:00:05]}  Bb7 {[%clk 0:00:12]} 71. Nd5 {[%clk 0:00:05]}  Bc6 {[%clk 0:00:12]} 72. Ne3 {[%clk 0:00:05]}  Kf6 {[%clk 0:00:12]} 73. Nf5 {[%clk 0:00:05]}  Bd7 {[%clk 0:00:10]} 74. Ke3 {[%clk 0:00:05]}  Bc6 {[%clk 0:00:10]} 75. Nd6 {[%clk 0:00:05]}  Ke6 {[%clk 0:00:11]} 76. Nf5 {[%clk 0:00:05]}  Kf6 {[%clk 0:00:11]} 77. Ng3 {[%clk 0:00:05]}  Kg6 {[%clk 0:00:11]} 78. Ne2 {[%clk 0:00:06]}  Bd7 {[%clk 0:00:11]} 79. Nc3 {[%clk 0:00:07]}  Bc6 {[%clk 0:00:12]} 80. Nd5 {[%clk 0:00:07]}  Kf7 {[%clk 0:00:11]} 81. Nc7 {[%clk 0:00:07]}  Ke7 {[%clk 0:00:12]} 82. Nxa6 {[%clk 0:00:07]}  Kd8 {[%clk 0:00:12]} 83. Nb8 {[%clk 0:00:07]}  Ba8 {[%clk 0:00:12]} 84. c6 {[%clk 0:00:06]}  Kc7 {[%clk 0:00:11]} 85. Na6+ {[%clk 0:00:06]}  Kxc6 {[%clk 0:00:12]} 86. Nc5 {[%clk 0:00:07]}  Kd6 {[%clk 0:00:13]} 87. Nd3 {[%clk 0:00:07]}  Bc6 {[%clk 0:00:13]} 88. Ne1 {[%clk 0:00:07]}  Ba8 {[%clk 0:00:13]} 89. Nf3 {[%clk 0:00:08]}  Ke6 {[%clk 0:00:14]} 90. Ng5+ {[%clk 0:00:08]}  Kf6 {[%clk 0:00:14]} 91. Kd3 {[%clk 0:00:08]}  Bc6 {[%clk 0:00:14]} 92. Nh3 {[%clk 0:00:09]}  Ba8 {[%clk 0:00:14]} 93. Nf2 {[%clk 0:00:09]}  Bc6 {[%clk 0:00:14]} 94. Nd1 {[%clk 0:00:10]}  Ba8 {[%clk 0:00:15]} 95. Nc3 {[%clk 0:00:10]}  Bc6 {[%clk 0:00:14]} 96. Nd5+ {[%clk 0:00:10]}  Ke6 {[%clk 0:00:15]} 97. Ke3 {[%clk 0:00:10]}  Kd6 {[%clk 0:00:09]} 98. Nf6 {[%clk 0:00:10]}  Ke6 {[%clk 0:00:09]} 99. Nxh5 {[%clk 0:00:11]}  Be8 {[%clk 0:00:10]} 100. Ng7+ {[%clk 0:00:10]}  Kf6 {[%clk 0:00:08]} 101. Nxe8+ {[%clk 0:00:11]} 1-0


[Site "https://www.chess.com"]

[Event "Titled Tuesday Blitz August 22 Late 2023"]
[White "Lenderman, Aleksandr"]
[Black "brm72"]
[WhiteFideId "2021285"]
[WhiteElo "2856"]
[BlackElo "2550"]
[Result "0-1"]
[Round "2"]
[TimeControl "180+1"]
[Date "2023.08.22"]
[WhiteClock "0:00:39"]
[BlackClock "0:00:29"]
[Board "50"]

1. Nf3 {[%clk 0:03:00]}  c5 {[%clk 0:02:59]} 2. b3 {[%clk 0:03:01]}  Nc6 {[%clk 0:02:59]} 3. Bb2 {[%clk 0:03:02]}  d6 {[%clk 0:02:56]} 4. e3 {[%clk 0:03:00]}  e5 {[%clk 0:02:56]} 5. d4 {[%clk 0:03:00]}  cxd4 {[%clk 0:02:53]} 6. exd4 {[%clk 0:03:01]}  e4 {[%clk 0:02:53]} 7. d5 {[%clk 0:03:00]}  exf3 {[%clk 0:02:46]} 8. dxc6 {[%clk 0:02:54]}  Qe7+ {[%clk 0:02:45]} 9. Kd2 {[%clk 0:02:49]}  Qg5+ {[%clk 0:02:43]} 10. Ke1 {[%clk 0:02:45]}  fxg2 {[%clk 0:02:41]} 11. Qe2+ {[%clk 0:02:39]}  Kd8 {[%clk 0:02:25]} 12. Bxg2 {[%clk 0:02:11]}  Qxg2 {[%clk 0:02:19]} 13. Rf1 {[%clk 0:02:11]}  bxc6 {[%clk 0:02:00]} 14. Nd2 {[%clk 0:02:10]}  Nf6 {[%clk 0:01:55]} 15. Bxf6+ {[%clk 0:02:04]}  gxf6 {[%clk 0:01:54]} 16. Ne4 {[%clk 0:02:00]}  Ba6 {[%clk 0:01:29]} 17. c4 {[%clk 0:01:52]}  f5 {[%clk 0:01:07]} 18. Nc5 {[%clk 0:01:09]}  dxc5 {[%clk 0:00:41]} 19. Rd1+ {[%clk 0:01:07]}  Kc7 {[%clk 0:00:41]} 20. Qe5+ {[%clk 0:01:05]}  Kb6 {[%clk 0:00:41]} 21. Kd2 {[%clk 0:01:00]}  Bh6+ {[%clk 0:00:37]} 22. Kc2 {[%clk 0:00:56]}  Qe4+ {[%clk 0:00:37]} 23. Qxe4 {[%clk 0:00:56]}  fxe4 {[%clk 0:00:38]} 24. Rd6 {[%clk 0:00:56]}  Bf4 {[%clk 0:00:37]} 25. Rf6 {[%clk 0:00:56]}  Bxh2 {[%clk 0:00:36]} 26. Rh1 {[%clk 0:00:54]}  Be5 {[%clk 0:00:34]} 27. Rxf7 {[%clk 0:00:54]}  Bd4 {[%clk 0:00:34]} 28. Rh6 {[%clk 0:00:50]}  Raf8 {[%clk 0:00:32]} 29. Rhxh7 {[%clk 0:00:42]}  Rxf7 {[%clk 0:00:29]} 30. Rxf7 {[%clk 0:00:39]}  Rh2 {[%clk 0:00:29]} 0-1


[Site "https://www.chess.com"]

[Event "Titled Tuesday Blitz August 22 Late 2023"]
[White "Yanchenko, Roman"]
[Black "Nurgaliyeva, Zarina"]
[WhiteFideId "4137329"]
[BlackFideId "13730096"]
[WhiteElo "2832"]
[BlackElo "2544"]
[Result "1-0"]
[Round "2"]
[TimeControl "180+1"]
[Date "2023.08.22"]
[WhiteClock "0:00:04"]
[BlackClock "0:00:00"]
[Board "54"]

1. d4 {[%clk 0:03:00]}  Nf6 {[%clk 0:02:57]} 2. Nf3 {[%clk 0:03:00]}  d5 {[%clk 0:02:55]} 3. Bf4 {[%clk 0:03:00]}  c5 {[%clk 0:02:53]} 4. e3 {[%clk 0:03:00]}  Nc6 {[%clk 0:02:53]} 5. Be2 {[%clk 0:03:00]}  Qb6 {[%clk 0:02:47]} 6. Nc3 {[%clk 0:03:00]}  a6 {[%clk 0:02:04]} 7. Na4 {[%clk 0:02:42]}  Qa5+ {[%clk 0:02:02]} 8. c3 {[%clk 0:02:42]}  cxd4 {[%clk 0:01:56]} 9. exd4 {[%clk 0:02:42]}  e6 {[%clk 0:01:48]} 10. b4 {[%clk 0:02:34]}  Qd8 {[%clk 0:01:44]} 11. O-O {[%clk 0:02:29]}  Be7 {[%clk 0:01:36]} 12. Bd3 {[%clk 0:02:25]}  O-O {[%clk 0:01:36]} 13. Re1 {[%clk 0:02:22]}  Bd7 {[%clk 0:01:28]} 14. Nc5 {[%clk 0:02:20]}  Bxc5 {[%clk 0:01:21]} 15. bxc5 {[%clk 0:02:18]}  b6 {[%clk 0:01:18]} 16. cxb6 {[%clk 0:01:47]}  Qxb6 {[%clk 0:01:17]} 17. Qb3 {[%clk 0:01:47]}  Qa7 {[%clk 0:01:08]} 18. Rab1 {[%clk 0:01:45]}  Rfc8 {[%clk 0:01:06]} 19. Ne5 {[%clk 0:01:40]}  Na5 {[%clk 0:01:04]} 20. Qb4 {[%clk 0:01:25]}  Nc6 {[%clk 0:00:39]} 21. Qa3 {[%clk 0:01:19]}  Nh5 {[%clk 0:00:25]} 22. Nxc6 {[%clk 0:00:43]}  Rxc6 {[%clk 0:00:23]} 23. Bd6 {[%clk 0:00:43]}  Rac8 {[%clk 0:00:19]} 24. Rb3 {[%clk 0:00:41]}  Nf6 {[%clk 0:00:13]} 25. Reb1 {[%clk 0:00:36]}  Ne8 {[%clk 0:00:14]} 26. Rb7 {[%clk 0:00:32]}  Qa8 {[%clk 0:00:10]} 27. Rxd7 {[%clk 0:00:24]}  Rxc3 {[%clk 0:00:10]} 28. Rb3 {[%clk 0:00:24]}  Rxb3 {[%clk 0:00:07]} 29. axb3 {[%clk 0:00:25]}  Qc6 {[%clk 0:00:05]} 30. Qa4 {[%clk 0:00:15]}  Qc1+ {[%clk 0:00:04]} 31. Bf1 {[%clk 0:00:15]}  Nf6 {[%clk 0:00:03]} 32. Ra7 {[%clk 0:00:10]}  Ne4 {[%clk 0:00:01]} 33. Qxa6 {[%clk 0:00:10]}  Nd2 {[%clk 0:00:01]} 34. Bc5 {[%clk 0:00:02]}  h5 {[%clk 0:00:02]} 35. Qxc8+ {[%clk 0:00:01]}  Kh7 {[%clk 0:00:02]} 36. Qa6 {[%clk 0:00:02]}  Qe1 {[%clk 0:00:01]} 37. Qd3+ {[%clk 0:00:02]}  g6 {[%clk 0:00:01]} 38. Rxf7+ {[%clk 0:00:02]}  Kh8 {[%clk 0:00:01]} 39. Rf8+ {[%clk 0:00:02]}  Kh7 {[%clk 0:00:01]} 40. Rf7+ {[%clk 0:00:02]}  Kh8 {[%clk 0:00:02]} 41. h4 {[%clk 0:00:03]}  Qxf1+ {[%clk 0:00:01]} 42. Qxf1 {[%clk 0:00:03]}  Nxf1 {[%clk 0:00:00]} 43. Kxf1 {[%clk 0:00:04]} 1-0


[Site "https://www.chess.com"]